fUSD/lending_fUSD_20241226
["ID","MTS","AMOUNT","RATE_DAILY","PERIOD"]
[346699507,1735204247014,-300.0,0.00016799,2]
[346699508,1735204247030,-300.0,0.00016799,2]
[346699509,1735204247045,-300.0,0.00016799,2]
[346699510,1735204247061,-300.0,0.00016799,2]
[346699511,1735204247075,-300.0,0.00016799,2]
[346699512,1735204247090,-300.0,0.00016799,2]
[346699513,1735204247104,-300.0,0.00016799,2]
[346699514,1735204247121,-300.0,0.00016799,2]
[346699515,1735204247138,-666.0,0.00016799,2]
[346699516,1735204247154,-300.0,0.00016799,2]
[346699517,1735204247170,-300.0,0.00016799,2]
[346699518,1735204247181,-14542.69180206,0.000168,2]
[346699519,1735204586800,-1026.0,0.00013,2]
[346699520,1735204586822,-1501.76,0.00013,2]
[346699521,1735204586845,-600.0,0.00013287,2]
[346699522,1735204586871,-600.0,0.00013287,2]
[346699523,1735204586894,-1042.94271764,0.00013287,2]
[346699524,1735204586917,-600.0,0.00013287,2]
[346699525,1735204586938,-500.0,0.00013432,2]
[346699526,1735204586960,-600.0,0.00013432,2]
[346699527,1735204586981,-600.0,0.0001358,2]
[346699528,1735204587003,-600.0,0.0001358,2]
[346699529,1735204587026,-600.0,0.0001358,2]
[346699530,1735204587047,-600.0,0.0001358,2]
[346699531,1735204587068,-151.0,0.00013688,2]
[346699532,1735204587090,-16139.92998056,0.00014421,2]
[346699533,1735204587111,-500.0,0.00014781,2]
[346699534,1735204587133,-600.0,0.00014802,2]
[346699535,1735204587155,-214.82850374,0.000149,2]
[346699536,1735204587178,-1500.0,0.00015137,2]
[346699537,1735204587199,-150.0,0.00015287,2]
[346699538,1735204587222,-248.38,0.00015309,2]
[346699539,1735204587245,-1000.0,0.00015336,2]
[346699540,1735204587266,-226.5,0.00015515,2]
[346699541,1735204587288,-500.0,0.00015554,2]
[346699542,1735204610498,600.0,0.00013287,2]
[346699543,1735204648900,500.0,0.00013432,2]
[346699544,1735204649731,1351.58,0.00013,2]
[346699545,1735204670454,500.0,0.00014528,2]
[346699546,1735204822572,250.31886172,0.00015476,15]
[346699547,1735204834753,1420.36022575,0.00012998,4]
[346699548,1735204835327,1216.42,0.00013,2]
[346699549,1735204947827,486.69,0.00013647,2]
[346699550,1735204949543,450.0,0.00013,2]
[346699551,1735204950642,500.0,0.00015,2]
[346699552,1735204955249,10276.0,0.00015,2]
[346699553,1735204990097,800.0,0.00015014,2]
[346699554,1735204993394,450.0,0.00013,2]
[346699555,1735204994234,500.0,0.00015,2]
[346699556,1735205004454,500.0,0.00014781,2]
[346699557,1735205021246,1094.78,0.00013,2]
[346699558,1735205087879,154.647149,0.000117,2]
[346699559,1735205108526,87741.75440003,0.00013,2]
[346699560,1735205117779,388.69,0.00013699,2]
[346699561,1735205128852,1000.0,0.00012944,2]
[346699563,1735205155246,14035.85056553,6.94e-05,2]
[346699564,1735205163124,5675.64694837,9.8e-05,2]
[346699565,1735205207954,985.3,0.00013,2]
[346699566,1735205218871,9900.54046608,0.0001498,2]
[346699567,1735205224914,6082.84963344,0.00012767,2]
[346699572,1735205238347,200.0,0.000151,2]
[346699573,1735205293837,9838.12628434,0.0001439,2]
[346699574,1735205306052,374.10026673,7.888e-05,2]
[346699575,1735205312160,213.78677359,0.0001,2]
[346699581,1735205318177,2165.91238931,0.0001421,7]
[346699591,1735205354327,500.0,0.00015548,2]
[346699593,1735205358018,2681.98,0.00015554,2]
[346699625,1735205383446,246.99,0.00010137,2]
[346699626,1735205391827,886.77,0.00013,2]
[346699627,1735205429217,1000.0,0.00015547,2]
[346699643,1735205432264,-226.5,0.00015556,2]
[346699644,1735205432277,-400.0,0.0001556,2]
[346699645,1735205432287,-250.0,0.00015612,2]
[346699646,1735205432297,-200.0,0.00015649,2]
[346699647,1735205432306,-19.71304728,0.00015656,2]
[346699648,1735205432594,-180.28695272,0.00015656,2]
[346699649,1735205432603,-151.0,0.00015665,2]
[346699650,1735205432613,-223.67,0.00015704,2]
[346699651,1735205432622,-989.41470728,0.00015828,2]
[346699652,1735205432649,-1232.3188263,0.00015828,2]
[346699653,1735205432676,-1778.26646642,0.00015828,2]
[346699654,1735205432687,-500.0,0.00015898,2]
[346699656,1735205432696,-486.69,0.00015911,2]
[346699657,1735205432706,-409.329,0.0001596,2]
[346699658,1735205432715,-500.0,0.00016172,2]
[346699659,1735205432725,-300.0,0.000164,2]
[346699660,1735205432735,-150.0,0.00016439,2]
[346699661,1735205432744,-150.0,0.00016441,2]
[346699662,1735205432754,-150.0,0.00016445,2]
[346699663,1735205432763,-150.0,0.00016447,2]
[346699664,1735205432773,-150.0,0.00016451,2]
[346699665,1735205432782,-150.0,0.00016455,2]
[346699666,1735205432792,-150.0,0.00016456,2]
[346699667,1735205432801,-300.0,0.00016456,2]
[346699668,1735205432811,-1500.0,0.00016457,2]
[346699669,1735205432820,-150.0,0.00016458,2]
[346699670,1735205432830,-150.0,0.00016465,2]
[346699671,1735205432840,-150.0,0.00016465,2]
[346699672,1735205432849,-150.0,0.00016467,2]
[346699673,1735205432858,-150.0,0.00016468,2]
[346699674,1735205432868,-150.0,0.00016473,2]
[346699675,1735205432877,-150.0,0.00016476,2]
[346699676,1735205432886,-150.0,0.00016482,2]
[346699677,1735205432896,-150.0,0.00016482,2]
[346699678,1735205432906,-150.0,0.00016491,2]
[346699679,1735205432915,-150.0,0.00016493,2]
[346699680,1735205432924,-1500.0,0.00016494,2]
[346699681,1735205432935,-150.0,0.000165,2]
[346699682,1735205432945,-150.0,0.00016505,2]
[346699683,1735205432954,-150.0,0.00016507,2]
[346699684,1735205432964,-1500.0,0.00016512,2]
[346699685,1735205432974,-150.0,0.00016512,2]
[346699686,1735205432983,-150.0,0.00016513,2]
[346699687,1735205432993,-150.0,0.00016514,2]
[346699688,1735205433195,-150.0,0.00016515,2]
[346699689,1735205433213,-150.0,0.00016518,2]
[346699690,1735205433223,-150.0,0.00016518,2]
[346699691,1735205433233,-150.0,0.0001652,2]
[346699692,1735205433243,-150.0,0.00016525,2]
[346699693,1735205433253,-150.0,0.00016526,2]
[346699694,1735205433262,-150.0,0.00016526,2]
[346699695,1735205433277,-150.0,0.00016527,2]
[346699696,1735205433287,-150.0,0.00016528,2]
[346699697,1735205433297,-150.0,0.00016528,2]
[346699698,1735205433306,-150.0,0.00016531,2]
[346699699,1735205433317,-150.0,0.00016531,2]
[346699700,1735205433327,-150.0,0.00016531,2]
[346699701,1735205433336,-150.0,0.00016533,2]
[346699702,1735205433347,-150.0,0.00016533,2]
[346699703,1735205433357,-150.0,0.00016536,2]
[346699704,1735205433367,-150.0,0.00016536,2]
[346699705,1735205433376,-150.0,0.00016537,2]
[346699706,1735205433387,-150.0,0.00016537,2]
[346699707,1735205433396,-150.0,0.00016539,2]
[346699708,1735205433406,-150.0,0.0001654,2]
[346699709,1735205433416,-150.0,0.00016543,2]
[346699710,1735205433425,-150.0,0.00016544,2]
[346699711,1735205433439,-150.0,0.00016545,2]
[346699712,1735205433448,-150.0,0.00016546,2]
[346699713,1735205433458,-1500.0,0.00016554,2]
[346699714,1735205433467,-150.0,0.00016555,2]
[346699715,1735205433477,-150.0,0.00016558,2]
[346699716,1735205433487,-150.0,0.00016565,2]
[346699717,1735205433496,-150.0,0.00016565,2]
[346699718,1735205433506,-150.0,0.00016566,2]
[346699719,1735205433515,-150.0,0.00016566,2]
[346699720,1735205433524,-150.0,0.00016569,2]
[346699721,1735205433534,-150.0,0.00016572,2]
[346699722,1735205433543,-1500.0,0.00016574,2]
[346699723,1735205433553,-150.0,0.00016577,2]
[346699724,1735205433562,-150.0,0.0001658,2]
[346699725,1735205433572,-150.0,0.00016584,2]
[346699726,1735205433582,-150.0,0.00016584,2]
[346699727,1735205433591,-150.0,0.00016585,2]
[346699728,1735205433601,-150.0,0.00016587,2]
[346699729,1735205433611,-150.0,0.00016588,2]
[346699730,1735205433620,-150.0,0.00016589,2]
[346699731,1735205433629,-150.0,0.00016591,2]
[346699732,1735205433639,-152.96469833,0.00016593,2]
[346699733,1735205433648,-150.0,0.00016596,2]
[346699734,1735205433658,-150.0,0.00016596,2]
[346699735,1735205433668,-150.0,0.00016598,2]
[346699736,1735205433677,-150.0,0.000166,2]
[346699737,1735205433688,-1500.0,0.00016602,2]
[346699738,1735205433698,-150.0,0.00016602,2]
[346699739,1735205433708,-150.0,0.00016602,2]
[346699740,1735205433718,-150.0,0.00016603,2]
[346699741,1735205433728,-150.0,0.00016603,2]
[346699742,1735205433737,-1072.56959685,0.00016603,2]
[346699743,1735205433747,-150.0,0.00016606,2]
[346699744,1735205433756,-150.0,0.00016607,2]
[346699745,1735205433766,-150.0,0.00016612,2]
[346699746,1735205433776,-150.0,0.00016619,2]
[346699747,1735205433786,-1500.0,0.0001662,2]
[346699748,1735205433796,-150.0,0.0001662,2]
[346699749,1735205433805,-150.0,0.00016623,2]
[346699750,1735205433815,-150.0,0.00016627,2]
[346699751,1735205433824,-150.0,0.00016627,2]
[346699752,1735205433834,-150.0,0.00016635,2]
[346699753,1735205433844,-150.0,0.00016635,2]
[346699754,1735205433853,-150.0,0.00016638,2]
[346699755,1735205433863,-739.74893563,0.00016639,2]
[346699756,1735205433874,-150.0,0.00016649,2]
[346699757,1735205433884,-150.0,0.00016651,2]
[346699758,1735205433895,-142.98918379,0.00016651,2]
[346699759,1735205433908,-7.01081621,0.00016651,2]
[346699760,1735205433918,-150.0,0.00016651,2]
[346699761,1735205433927,-150.0,0.00016653,2]
[346699762,1735205433937,-94.32678076,0.00016654,2]
[346699777,1735205438312,-55.67321924,0.00016654,2]
[346699778,1735205438323,-150.0,0.00016655,2]
[346699779,1735205438332,-165.37,0.00016658,30]
[346699780,1735205438342,-150.0,0.00016659,2]
[346699781,1735205438352,-167.62069315,0.00016661,2]
[346699782,1735205438362,-150.0,0.00016663,2]
[346699783,1735205438371,-150.0,0.00016664,2]
[346699784,1735205438381,-150.0,0.00016665,2]
[346699785,1735205438391,-150.0,0.00016669,2]
[346699786,1735205438400,-150.0,0.00016669,2]
[346699787,1735205438409,-150.0,0.00016673,2]
[346699788,1735205438418,-150.0,0.00016675,2]
[346699789,1735205438428,-150.0,0.00016677,2]
[346699790,1735205438439,-150.0,0.00016681,2]
[346699791,1735205438447,-296.86967942,0.00016686,2]
[346699792,1735205438472,-384.359608,0.00016686,2]
[346699793,1735205438483,-335.77071258,0.00016686,2]
[346699794,1735205438493,-150.0,0.0001669,2]
[346699795,1735205438503,-150.0,0.00016692,2]
[346699796,1735205438513,-150.0,0.00016696,2]
[346699797,1735205438522,-150.03666278,0.000167,2]
[346699798,1735205438531,-198.99918813,0.000167,2]
[346699799,1735205438540,-150.0,0.000167,2]
[346699800,1735205438550,-150.0,0.00016701,2]
[346699801,1735205438559,-150.0,0.00016701,2]
[346699802,1735205438568,-118.92334444,0.00016704,2]
[346699820,1735205438714,-31.07665556,0.00016704,2]
[346699822,1735205438724,-150.0,0.0001671,2]
[346699824,1735205438733,-175.75,0.00016712,2]
[346699826,1735205438743,-150.0,0.00016724,2]
[346699827,1735205438753,-150.0,0.00016732,2]
[346699829,1735205438762,-150.0,0.00016737,2]
[346699831,1735205438771,-261.99632965,0.00016744,2]
[346699833,1735205438780,-150.0,0.00016749,2]
[346699835,1735205438789,-331.24792974,0.00016758,2]
[346699837,1735205438798,-150.0,0.00016758,2]
[346699839,1735205438806,-597.04693685,0.0001677,2]
[346699847,1735205438871,-102.95306315,0.0001677,2]
[346699849,1735205438880,-269.27484318,0.0001677,2]
[346699857,1735205438942,-19.60582638,0.0001677,2]
[346699859,1735205438951,-212.58146832,0.00016799,2]
[346699861,1735205438960,-226.10443539,0.00016799,2]
[346699863,1735205438970,-192.95822891,0.00016799,2]
[346699870,1735205440201,-150.0,0.00016511,2]
[346699871,1735205440211,-150.0,0.00016516,2]
[346699872,1735205440221,-150.0,0.00016571,2]
[346699873,1735205440230,-150.0,0.00016573,2]
[346699874,1735205440239,-150.0,0.00016591,2]
[346699875,1735205440248,-150.0,0.0001661,2]
[346699876,1735205440257,-150.0,0.00016627,2]
[346699877,1735205440266,-150.0,0.00016641,2]
[346699878,1735205440279,-150.0,0.00016648,2]
[346699879,1735205440287,-150.0,0.00016663,2]
[346699880,1735205440296,-150.0,0.00016675,2]
[346699881,1735205440305,-150.0,0.00016683,2]
[346699882,1735205440314,-150.0,0.00016699,2]
[346699883,1735205440324,-150.0,0.00016705,2]
[346699884,1735205440333,-150.0,0.00016713,2]
[346699885,1735205440342,-150.0,0.00016744,2]
[346699886,1735205440352,-150.0,0.00016751,2]
[346699887,1735205440361,-150.0,0.00016757,2]
[346699888,1735205440371,-662.26446461,0.00016799,2]
[346699889,1735205440380,-1000.0,0.00016799,9]
[346699890,1735205440390,-2945.42636246,0.000168,2]
[346699891,1735205440399,-12327.28955005,0.000168,3]
[346699923,1735205441034,-150.0,0.00016612,2]
[346699925,1735205441044,-12046.7078,0.000168,3]
[346699927,1735205441055,-3921.6432,0.000168,3]
[346699929,1735205441066,-3349.0,0.000168,3]
[346699933,1735205441107,-150.0,0.00016675,2]
[346699935,1735205441116,-3549.99461874,0.000168,3]
[346699936,1735205441128,-1021.095,0.000168,3]
[346699937,1735205441140,-483.21795857,0.000168,3]
[346699938,1735205441150,-452.45572213,0.000168,3]
[346699939,1735205441161,-959.0289864,0.000168,3]
[346699940,1735205441262,-150.0,0.00016667,2]
[346699941,1735205441273,-204.06840145,0.000168,3]
[346699942,1735205441339,-150.0,0.0001655,2]
[346699943,1735205441351,-137.41323734,0.0001657,2]
[346699944,1735205441555,-150.0,0.00016479,2]
[346699945,1735205441565,-12.58676266,0.0001657,2]
[346699946,1735205441574,-150.0,0.00016608,2]
[346699947,1735205441584,-107.41323734,0.00016627,2]
[346699962,1735205443156,-150.0,0.00016525,2]
[346699963,1735205443166,-150.0,0.00016557,2]
[346699964,1735205443175,-80.08971001,0.00016606,2]
[346699965,1735205443186,-69.91028999,0.00016606,2]
[346699966,1735205443195,-150.0,0.00016623,2]
[346699967,1735205443205,-150.0,0.00016624,2]
[346699968,1735205443214,-86.22970953,0.00016626,2]
[346699969,1735205443225,-63.77029047,0.00016626,2]
[346699970,1735205443234,-42.58676266,0.00016627,2]
[346699971,1735205443243,-150.0,0.00016632,2]
[346699972,1735205443252,-150.0,0.00016638,2]
[346699973,1735205443261,-150.0,0.00016649,2]
[346699974,1735205443270,-150.0,0.0001665,2]
[346699975,1735205443283,-150.0,0.00016664,2]
[346699976,1735205443292,-150.0,0.00016664,2]
[346699977,1735205443301,-150.0,0.00016686,2]
[346699978,1735205443310,-150.0,0.00016691,2]
[346699979,1735205443320,-150.0,0.00016699,2]
[346699980,1735205443329,-150.0,0.00016731,2]
[346699981,1735205443338,-150.0,0.00016731,2]
[346699982,1735205443347,-150.0,0.00016738,2]
[346699983,1735205443356,-914.0,0.000168,2]
[346699984,1735205443365,-403.54294637,0.000168,3]
[346699985,1735205443407,-7764.0017081,0.000168,3]
[346699986,1735205443419,-5358.95820267,0.000168,3]
[346699987,1735205443535,-495.98168815,0.000168,3]
[346699988,1735205443546,-934.12382086,0.000168,3]
[346699989,1735205443557,-1660.0,0.000168,3]
[346699991,1735205443610,-150.0,0.00016554,2]
[346699992,1735205443620,-276.29565446,0.000168,3]
[346699993,1735205443631,-3197.54513101,0.000168,3]
[346699998,1735205443758,-150.0,0.00016768,2]
[346699999,1735205443767,-150.19075284,0.000168,3]
[346700000,1735205443779,-402.6,0.000168,3]
[346700001,1735205443837,-150.0,0.00016743,2]
[346700002,1735205443847,-9409.55000001,0.000168,3]
[346700018,1735205446084,-4991.81,0.00015876,2]
[346700021,1735205446093,-150.0,0.00016555,2]
[346700024,1735205446102,-150.0,0.00016558,2]
[346700027,1735205446111,-150.0,0.00016587,2]
[346700029,1735205446121,-150.0,0.00016603,2]
[346700032,1735205446130,-150.0,0.00016613,2]
[346700034,1735205446139,-150.0,0.00016633,2]
[346700036,1735205446149,-150.0,0.00016639,2]
[346700038,1735205446158,-150.0,0.00016655,2]
[346700040,1735205446167,-1492.0894028,0.00016661,2]
[346700042,1735205446176,-150.0,0.00016692,2]
[346700044,1735205446186,-150.0,0.00016694,2]
[346700045,1735205446197,-150.0,0.00016697,2]
[346700046,1735205446210,-150.0,0.00016715,2]
[346700048,1735205446219,-150.0,0.00016724,2]
[346700050,1735205446228,-150.0,0.00016743,2]
[346700051,1735205446237,-150.0,0.00016744,2]
[346700052,1735205446247,-150.0,0.0001675,2]
[346700053,1735205446256,-150.0,0.00016789,2]
[346700054,1735205446266,-150.0,0.00016794,2]
[346700055,1735205446277,-38786.5147588,0.000168,3]
[346700056,1735205446509,-1823.50243452,0.000168,3]
[346700057,1735205446520,-2096.34144121,0.000168,3]
[346700058,1735205446584,-43458.13737409,0.000168,3]
[346700059,1735205446594,-5362.88160106,0.000168,3]
[346700060,1735205446635,-1139.1771887,0.000168,3]
[346700061,1735205446679,-150.0,0.00016769,2]
[346700062,1735205446689,-1176.26119037,0.000168,3]
[346700063,1735205446701,-3212.94337782,0.000168,3]
[346700064,1735205446755,-302.66609182,0.000168,3]
[346700065,1735205446767,-588.7449,0.000168,3]
[346700066,1735205446796,-8896.85184912,0.000168,3]
[346700070,1735205494323,700.0,0.00013432,2]
[346700071,1735205495420,700.0,0.00014802,2]
[346700072,1735205517372,500.0,0.00013432,2]
[346700073,1735205577236,798.1,0.00013,2]
[346700075,1735205707321,1170.0,0.00014068,2]
[346700076,1735205712348,9590.0,0.00014068,2]
[346700077,1735205762359,718.29,0.000131,2]
[346700083,1735205871935,2147.77843505,0.000155,2]
[346700084,1735205881839,265.33272251,0.00015552,2]
[346700085,1735205915136,547.47,0.0001375,2]
[346700091,1735205948802,646.46,0.000131,2]
[346700093,1735205985910,155.940262,9.643e-05,2]
[346700094,1735205985990,153.939526,9.643e-05,2]
[346700095,1735205988352,311.752278,9.643e-05,2]
[346700096,1735205988680,311.752278,9.645e-05,2]
[346700097,1735205989109,311.752278,9.646e-05,2]
[346700098,1735205989292,311.752278,9.648e-05,2]
[346700099,1735205989593,311.752278,9.782e-05,2]
[346700100,1735205989877,311.752278,9.784e-05,2]
[346700101,1735205990207,311.752278,9.79e-05,2]
[346700102,1735205990521,311.752278,9.792e-05,2]
[346700103,1735205990811,311.752278,9.794e-05,2]
[346700104,1735205991143,311.752278,9.794e-05,2]
[346700105,1735205991411,311.752278,9.797e-05,2]
[346700106,1735205991722,311.752278,9.798e-05,2]
[346700107,1735205992402,311.752278,9.92e-05,2]
[346700108,1735205992706,311.752278,0.00010056,2]
[346700109,1735205992962,311.752278,0.00010066,2]
[346700110,1735205993090,311.752278,0.00010194,2]
[346700111,1735205993336,311.752278,0.00010468,2]
[346700112,1735205993693,311.752278,0.00010742,2]
[346700113,1735205994364,311.752278,0.00011013,2]
[346700114,1735205994866,311.752278,0.00011287,2]
[346700115,1735205995065,311.752278,0.00011561,2]
[346700116,1735205995372,311.752278,0.00011835,2]
[346700117,1735205995667,311.752278,0.00012109,2]
[346700118,1735205995962,311.752278,0.00012383,2]
[346700119,1735205996259,311.752278,0.00012657,2]
[346700120,1735205996631,150.728329,9.643e-05,2]
[346700121,1735205996927,150.728329,9.646e-05,2]
[346700122,1735205997214,150.728329,9.784e-05,2]
[346700123,1735205997553,150.728329,9.792e-05,2]
[346700124,1735205998063,150.728329,9.794e-05,2]
[346700125,1735205998249,150.728329,9.798e-05,2]
[346700126,1735205998561,150.728329,0.00010066,2]
[346700127,1735205998862,150.728329,0.00010468,2]
[346700128,1735205999217,150.728329,0.00011013,2]
[346700129,1735205999564,150.728329,0.00011561,2]
[346700130,1735205999852,150.728329,0.00012383,2]
[346700131,1735206002900,182.23759993,9.792e-05,2]
[346700132,1735206005096,3888.0,0.00014068,2]
[346700133,1735206005273,150.0,0.00014068,2]
[346700136,1735206134394,581.81,0.000132,2]
[346700138,1735206242392,333.16,0.00013699,2]
[346700139,1735206264205,150.7,0.00010137,2]
[346700141,1735206305797,1265.0,0.00014068,2]
[346700142,1735206306136,1974.542,0.00014068,2]
[346700143,1735206309493,150.0,0.00015115,2]
[346700144,1735206312772,150.0,0.00015191,2]
[346700145,1735206312983,150.0,0.00015268,2]
[346700146,1735206313156,150.0,0.00015344,2]
[346700147,1735206313309,150.0,0.0001542,2]
[346700148,1735206313659,150.0,0.00015497,2]
[346700151,1735206319066,1000.0,0.00015473,2]
[346700152,1735206320381,523.63,0.00014,2]
[346700153,1735206321082,150.0,0.00015115,2]
[346700154,1735206321420,150.0,0.00015325,2]
[346700155,1735206322400,150.0,0.00015535,2]
[346700156,1735206325341,565.0,0.00014068,2]
[346700157,1735206325761,633.0,0.00014068,2]
[346700158,1735206325871,150.00000001,0.00015115,2]
[346700159,1735206327590,269.96,0.00015445,2]
[346700160,1735206327770,150.0,0.00015115,2]
[346700161,1735206327801,269.96,0.00015449,2]
[346700162,1735206328189,269.96,0.00015454,2]
[346700163,1735206328273,269.96,0.00015458,2]
[346700164,1735206328561,269.96,0.00015462,2]
[346700165,1735206328796,1843.26,0.00015445,2]
[346700166,1735206328951,269.96,0.00015466,2]
[346700167,1735206329162,269.96,0.0001547,2]
[346700168,1735206329437,269.96,0.00015474,2]
[346700169,1735206329580,269.96,0.00015478,2]
[346700170,1735206329781,269.96,0.00015482,2]
[346700171,1735206329974,269.96,0.00015486,2]
[346700172,1735206330191,269.96,0.0001549,2]
[346700173,1735206330270,1899.0,0.00014068,2]
[346700174,1735206330426,269.96,0.00015494,2]
[346700175,1735206330849,269.96,0.00015498,2]
[346700176,1735206331050,269.96,0.00015502,2]
[346700177,1735206331167,269.96,0.00015506,2]
[346700178,1735206331211,150.0,0.00015115,2]
[346700179,1735206331306,269.96,0.0001551,2]
[346700180,1735206331524,150.0,0.00015302,2]
[346700181,1735206331580,269.96,0.00015514,2]
[346700182,1735206331692,269.96,0.00015518,2]
[346700183,1735206331733,150.0,0.00015488,2]
[346700184,1735206331882,269.96,0.00015522,2]
[346700186,1735206334385,923.0,0.00014068,2]
[346700187,1735206335025,3771.0,0.00014068,2]
[346700189,1735206335848,284.38326006,0.00015115,2]
[346700190,1735206335875,818.0,0.00014068,2]
[346700191,1735206338278,150.0,0.00015115,2]
[346700194,1735206340130,150.0,0.00015115,2]
[346700196,1735206342078,150.0,0.00015115,2]
[346700197,1735206344498,250.0,0.00015408,2]
[346700198,1735206344944,536.0,0.00014068,2]
[346700199,1735206345975,158.6704238,0.00015115,2]
[346700200,1735206349222,171.66230027,0.00015115,2]
[346700201,1735206352494,150.0,0.00015115,2]
[346700202,1735206354603,150.0,0.00015115,2]
[346700203,1735206362846,447.33,0.00015418,2]
[346700204,1735206412848,167.11,0.00015405,2]
[346700210,1735206445485,250.0,0.00015405,2]
[346700211,1735206472357,500.0,0.00015416,2]
[346700212,1735206506013,471.27,0.00014,2]
[346700226,1735206618589,200.0,0.00015435,2]
[346700227,1735206619022,2974.3571,0.00015552,2]
[346700228,1735206627906,23900.0,0.00015446,2]
[346700244,1735206632351,-150.0,0.00015573,2]
[346700245,1735206632360,-2820.2462318,0.000156,2]
[346700246,1735206632371,-951.1637682,0.000156,2]
[346700247,1735206632382,-250.0,0.00015618,2]
[346700248,1735206632392,-150.0,0.00015644,2]
[346700249,1735206632401,-150.0,0.00015649,2]
[346700250,1735206632411,-86.73082363,0.00015652,2]
[346700251,1735206632455,-63.26917637,0.00015652,2]
[346700252,1735206632465,-211.063,0.00015652,2]
[346700253,1735206632474,-565.66782363,0.00015652,2]
[346700280,1735206633116,-309.4063498,0.00015652,2]
[346700281,1735206633145,-424.59482657,0.00015652,2]
[346700282,1735206633154,-224.07,0.00015653,2]
[346700283,1735206633166,-151.0,0.00015665,2]
[346700284,1735206633175,-114.02718592,0.00015675,2]
[346700285,1735206633187,-35.97281408,0.00015675,2]
[346700286,1735206633196,-4000.0,0.000157,2]
[346700287,1735206633206,-150.0,0.00015726,2]
[346700288,1735206633215,-150.0,0.00015745,2]
[346700289,1735206633225,-150.0,0.00015802,2]
[346700290,1735206633234,-324.48,0.0001584,2]
[346700291,1735206633244,-150.0,0.00015861,2]
[346700292,1735206633254,-150.0,0.00015878,2]
[346700293,1735206633263,-150.0,0.00015955,2]
[346700294,1735206633273,-150.0,0.00015955,2]
[346700295,1735206633283,-150.0,0.00015955,2]
[346700296,1735206633292,-1000.0,0.00015959,2]
[346700297,1735206633302,-387.65666036,0.0001596,2]
[346700298,1735206633327,-4.66733964,0.0001596,2]
[346700299,1735206633337,-206.13,0.00015975,2]
[346700300,1735206633346,-547.47,0.00016014,2]
[346700301,1735206633356,-150.0,0.00016031,2]
[346700302,1735206633365,-150.0,0.00016048,2]
[346700303,1735206633375,-150.0,0.00016107,2]
[346700304,1735206633385,-8569.0,0.00016138,2]
[346700305,1735206633396,-150.0,0.00016165,2]
[346700306,1735206633406,-700.0,0.00016172,2]
[346700307,1735206633417,-500.0,0.00016172,2]
[346700308,1735206633426,-150.0,0.00016184,2]
[346700309,1735206633436,-150.0,0.00016235,2]
[346700310,1735206633446,-150.0,0.0001626,2]
[346700311,1735206633455,-150.0,0.00016336,2]